[Event "UK Open Blitz Championships 2024 - London Qualifier"]
[Site "London, United Kingdom"]
[Date "2024.09.21"]
[Round "7.1"]
[White "Royal, Shreyas"]
[Black "Badacsonyi, Stanley"]
[Result "1/2-1/2"]
[TimeControl "3 minutes + 2 seconds incr. from move 1"]
[WhiteTitle "IM"]
[BlackTitle "FM"]
[WhiteFideId "448869"]
[BlackFideId "486973"]
[WhiteElo "2331"]
[BlackElo "2332"]

1. Nf3 {[%clk 00:03:03]} {[%emt 00:00:02]} Nf6 {[%clk 00:03:04]} 2. d4 {[%clk
00:03:04]} g6 {[%clk 00:03:05]} 3. Nc3 {[%clk 00:03:05]} {[%emt 00:00:02]} d5
{[%clk 00:03:03]} {[%emt 00:00:03]} 4. Bf4 {[%clk 00:03:05]} {[%emt 00:00:01]}
Bg7 {[%clk 00:03:04]} {[%emt 00:00:02]} 5. Nb5 {[%clk 00:03:06]} {[%emt
00:00:02]} Na6 {[%clk 00:03:05]} 6. e3 {[%clk 00:03:07]} O-O {[%clk 00:03:05]}
{[%emt 00:00:02]} 7. Be2 {[%clk 00:03:06]} {[%emt 00:00:03]} Ne4 {[%clk
00:03:06]} 8. O-O {[%clk 00:02:59]} {[%emt 00:00:09]} c6 {[%clk 00:03:07]}
{[%emt 00:00:01]} 9. Nc3 {[%clk 00:03:00]} Nxc3 {[%clk 00:03:08]} {[%emt
00:00:01]} 10. bxc3 {[%clk 00:03:01]} {[%emt 00:00:01]} c5 {[%clk 00:03:09]} 11.
Rb1 {[%clk 00:03:00]} {[%emt 00:00:03]} Nb8 {[%clk 00:03:00]} {[%emt 00:00:11]}
12. c4 {[%clk 00:02:56]} {[%emt 00:00:06]} cxd4 {[%clk 00:02:58]} {[%emt
00:00:04]} 13. exd4 {[%clk 00:02:54]} {[%emt 00:00:04]} Nc6 {[%clk 00:02:51]}
{[%emt 00:00:09]} 14. cxd5 {[%clk 00:02:53]} {[%emt 00:00:04]} Qxd5 {[%clk
00:02:51]} 15. c4 {[%clk 00:02:54]} {[%emt 00:00:01]} Qe4 {[%clk 00:02:44]}
{[%emt 00:00:09]} 16. Be3 {[%clk 00:02:55]} Rd8 {[%clk 00:02:41]} {[%emt
00:00:06]} 17. h3 {[%clk 00:02:46]} {[%emt 00:00:11]} Nxd4 {[%clk 00:02:25]}
{[%emt 00:00:18]} 18. Nxd4 {[%clk 00:02:40]} {[%emt 00:00:08]} Bxd4 {[%clk
00:02:26]} {[%emt 00:00:01]} 19. Bf3 {[%clk 00:02:41]} Qe5 {[%clk 00:02:25]}
{[%emt 00:00:03]} 20. Rb5 {[%clk 00:02:42]} {[%emt 00:00:02]} Qf6 {[%clk
00:02:21]} {[%emt 00:00:05]} 21. Bd5 {[%clk 00:02:33]} {[%emt 00:00:13]} Be5
{[%clk 00:02:13]} {[%emt 00:00:10]} 22. Qc1 {[%clk 00:02:33]} {[%emt 00:00:02]}
a6 {[%clk 00:02:09]} {[%emt 00:00:05]} 23. Rb6 {[%clk 00:02:34]} Qf5 {[%clk
00:02:07]} {[%emt 00:00:05]} 24. Rd1 {[%clk 00:02:29]} {[%emt 00:00:07]} Bc7
{[%clk 00:02:01]} {[%emt 00:00:08]} 25. Rb3 {[%clk 00:02:22]} {[%emt 00:00:08]}
Qe5 {[%clk 00:01:59]} {[%emt 00:00:04]} 26. f4 {[%clk 00:02:19]} {[%emt
00:00:06]} Qf6 {[%clk 00:01:59]} {[%emt 00:00:02]} 27. Rf1 {[%clk 00:02:03]}
{[%emt 00:00:17]} Be6 {[%clk 00:01:58]} {[%emt 00:00:03]} 28. Bxb7 {[%clk
00:01:56]} {[%emt 00:00:10]} Rab8 {[%clk 00:01:56]} {[%emt 00:00:04]} 29. Ba7
{[%clk 00:01:49]} {[%emt 00:00:09]} Rbc8 {[%clk 00:01:31]} {[%emt 00:00:27]} 30.
Bxc8 {[%clk 00:01:47]} {[%emt 00:00:04]} Rxc8 {[%clk 00:01:33]} 31. Rd3 {[%clk
00:01:32]} {[%emt 00:00:17]} Bxc4 {[%clk 00:01:24]} {[%emt 00:00:11]} 32. Bd4
{[%clk 00:01:22]} {[%emt 00:00:12]} Bxd3 {[%clk 00:01:20]} {[%emt 00:00:06]} 33.
Bxf6 {[%clk 00:01:16]} {[%emt 00:00:08]} Bb6+ {[%clk 00:01:22]} 34. Kh2 {[%clk
00:01:15]} {[%emt 00:00:02]} Rxc1 {[%clk 00:01:23]} {[%emt 00:00:01]} 35. Rxc1
{[%clk 00:01:16]} exf6 {[%clk 00:01:24]} 36. Rc6 {[%clk 00:01:17]} Be3 {[%clk
00:01:12]} {[%emt 00:00:13]} 37. Rc3 {[%clk 00:01:16]} {[%emt 00:00:04]} Bxf4+
{[%clk 00:01:11]} {[%emt 00:00:03]} 38. g3 {[%clk 00:01:17]} {[%emt 00:00:01]}
Bb1 {[%clk 00:01:12]} 39. gxf4 {[%clk 00:01:15]} {[%emt 00:00:03]} Bxa2 {[%clk
00:01:14]} {[%emt 00:00:02]} 40. Rc6 {[%clk 00:01:11]} {[%emt 00:00:06]} a5
{[%clk 00:01:07]} {[%emt 00:00:09]} 41. Ra6 {[%clk 00:01:11]} {[%emt 00:00:02]}
Be6 {[%clk 00:01:07]} {[%emt 00:00:02]} 42. Rxa5 {[%clk 00:01:12]} Kg7 {[%emt
00:00:02]} 43. h4 {[%clk 00:01:13]} h6 {[%clk 00:01:08]} 44. Kg3 {[%clk
00:01:15]} h5 {[%clk 00:01:08]} {[%emt 00:00:02]} 45. Kf2 {[%clk 00:01:14]}
{[%emt 00:00:02]} f5 {[%clk 00:01:03]} {[%emt 00:00:07]} 46. Ke3 {[%clk
00:01:15]} {[%emt 00:00:01]} Kf6 {[%clk 00:01:04]} 47. Kd4 {[%clk 00:01:16]}
Bb3 {[%clk 00:01:06]} 48. Ra7 {[%clk 00:01:14]} {[%emt 00:00:03]} Be6 {[%clk
00:01:06]} {[%emt 00:00:02]} 49. Kc5 {[%clk 00:01:16]} {[%emt 00:00:01]} Bb3
{[%clk 00:01:05]} {[%emt 00:00:03]} 50. Kd6 {[%clk 00:01:13]} {[%emt 00:00:05]}
Be6 {[%clk 00:01:06]} {[%emt 00:00:01]} 51. Kc7 {[%clk 00:01:14]} {[%emt
00:00:01]} Bb3 {[%clk 00:01:06]} {[%emt 00:00:02]} 52. Kd8 {[%clk 00:01:14]}
{[%emt 00:00:01]} Ke6 {[%clk 00:01:00]} {[%emt 00:00:07]} 53. Ke8 {[%clk
00:01:10]} {[%emt 00:00:07]} f6 {[%clk 00:00:36]} {[%emt 00:00:27]} 54. Ra5
{[%clk 00:00:56]} {[%emt 00:00:16]} g5 {[%clk 00:00:29]} {[%emt 00:00:08]} 55.
hxg5 {[%clk 00:00:54]} {[%emt 00:00:04]} fxg5 {[%clk 00:00:31]} 56. fxg5 {[%clk
00:00:55]} {[%emt 00:00:02]} f4 {[%clk 00:00:33]} 57. g6 {[%clk 00:00:53]}
{[%emt 00:00:04]} Kf6 {[%clk 00:00:34]} 58. Ra6+ {[%clk 00:00:52]} {[%emt
00:00:03]} Kg7 {[%clk 00:00:35]} 59. Ke7 {[%clk 00:00:46]} {[%emt 00:00:08]}
Bc2 {[%clk 00:00:35]} {[%emt 00:00:02]} 60. Ke6 {[%clk 00:00:43]} {[%emt
00:00:05]} Kxg6 {[%clk 00:00:34]} {[%emt 00:00:03]} 61. Ke5+ {[%clk 00:00:43]}
{[%emt 00:00:02]} Kg5 {[%clk 00:00:35]} 1/2-1/2

[Event "UK Open Blitz Championships 2024 - London Qualifier"]
[Site "London, United Kingdom"]
[Date "2024.09.21"]
[Round "7.2"]
[White "Turner, Max N"]
[Black "Kirk, Ezra"]
[Result "0-1"]
[TimeControl "3 minutes + 2 seconds incr. from move 1"]
[WhiteTitle "CM"]
[BlackTitle "IM"]
[WhiteFideId "447722"]
[BlackFideId "600067"]
[WhiteElo "2157"]
[BlackElo "2219"]

1. d4 {[%clk 00:03:02]} Nc6 {[%clk 00:03:02]} {[%emt 00:00:02]} 2. Nf3 {[%clk
00:03:03]} d6 {[%clk 00:03:02]} {[%emt 00:00:03]} 3. g3 {[%clk 00:03:04]}
{[%emt 00:00:01]} g6 {[%clk 00:03:02]} 4. Bg2 {[%clk 00:03:06]} Bg7 {[%clk
00:03:03]} {[%emt 00:00:01]} 5. O-O {[%clk 00:03:06]} {[%emt 00:00:02]} Nf6
{[%clk 00:03:03]} {[%emt 00:00:01]} 6. c4 {[%clk 00:03:05]} {[%emt 00:00:03]}
O-O {[%clk 00:03:02]} {[%emt 00:00:03]} 7. Nc3 {[%clk 00:03:06]} {[%emt
00:00:01]} a6 {[%clk 00:02:54]} {[%emt 00:00:11]} 8. Bf4 {[%clk 00:03:06]}
{[%emt 00:00:03]} Bd7 {[%clk 00:02:44]} {[%emt 00:00:12]} 9. Rc1 {[%clk
00:03:07]} {[%emt 00:00:01]} e6 {[%clk 00:02:39]} {[%emt 00:00:06]} 10. e4
{[%clk 00:03:04]} {[%emt 00:00:05]} Nh5 {[%clk 00:02:31]} {[%emt 00:00:10]} 11.
Bg5 {[%clk 00:03:03]} {[%emt 00:00:03]} f6 {[%clk 00:02:21]} {[%emt 00:00:12]}
12. Be3 {[%clk 00:02:59]} {[%emt 00:00:06]} e5 {[%clk 00:02:20]} {[%emt
00:00:04]} 13. d5 {[%clk 00:02:54]} {[%emt 00:00:07]} Ne7 {[%clk 00:02:20]} 14.
Nd2 {[%clk 00:02:47]} {[%emt 00:00:08]} f5 {[%clk 00:01:50]} {[%emt 00:00:32]}
15. exf5 {[%clk 00:02:44]} {[%emt 00:00:05]} Nxf5 {[%clk 00:01:51]} {[%emt
00:00:01]} 16. Nde4 {[%clk 00:02:36]} {[%emt 00:00:11]} Nxe3 {[%clk 00:01:50]}
{[%emt 00:00:03]} 17. fxe3 {[%clk 00:02:37]} {[%emt 00:00:01]} Bh6 {[%clk
00:01:37]} {[%emt 00:00:15]} 18. Qe2 {[%clk 00:02:34]} {[%emt 00:00:05]} Qe7
{[%clk 00:01:38]} {[%emt 00:00:02]} 19. Rcd1 {[%clk 00:02:18]} {[%emt
00:00:18]} Ng7 {[%clk 00:01:36]} {[%emt 00:00:03]} 20. c5 {[%clk 00:02:12]}
{[%emt 00:00:08]} Nf5 {[%clk 00:01:34]} {[%emt 00:00:04]} 21. Rd3 {[%clk
00:01:43]} {[%emt 00:00:32]} Rf7 {[%clk 00:01:35]} {[%emt 00:00:01]} 22. c6
{[%clk 00:01:34]} {[%emt 00:00:11]} bxc6 {[%clk 00:01:21]} {[%emt 00:00:15]} 23.
dxc6 {[%clk 00:01:34]} {[%emt 00:00:02]} Be6 {[%clk 00:01:18]} {[%emt
00:00:05]} 24. Nd2 {[%clk 00:01:20]} {[%emt 00:00:16]} Raf8 {[%clk 00:01:14]}
{[%emt 00:00:06]} 25. Nd5 {[%clk 00:01:21]} {[%emt 00:00:01]} Qd8 {[%clk
00:01:04]} {[%emt 00:00:11]} 26. Ra3 {[%clk 00:01:21]} {[%emt 00:00:03]} Kh8
{[%clk 00:00:55]} {[%emt 00:00:12]} 27. Rxa6 {[%clk 00:01:20]} {[%emt
00:00:02]} Bxd5 {[%clk 00:00:18]} {[%emt 00:00:39]} 28. Bxd5 {[%clk 00:01:21]}
{[%emt 00:00:01]} Bxe3+ {[%clk 00:00:14]} {[%emt 00:00:06]} 29. Kg2 {[%clk
00:00:59]} {[%emt 00:00:24]} Bxd2 {[%clk 00:00:13]} {[%emt 00:00:03]} 30. Qxd2
{[%clk 00:00:20]} {[%emt 00:00:41]} Nh4+ {[%clk 00:00:10]} {[%emt 00:00:06]} 31.
gxh4 {[%clk 00:00:16]} {[%emt 00:00:05]} Rxf1 {[%clk 00:00:10]} {[%emt
00:00:02]} 32. Qg5 {[%clk 00:00:07]} {[%emt 00:00:11]} R8f2+ {[%clk 00:00:07]}
{[%emt 00:00:05]} 33. Kh3 {[%clk 00:00:05]} {[%emt 00:00:05]} Qc8+ {[%clk
00:00:05]} {[%emt 00:00:04]} 34. Qg4 {[%clk 00:00:06]} Rf3+ {[%clk 00:00:05]}
{[%emt 00:00:02]} 35. Bxf3 {[%clk 00:00:07]} {[%emt 00:00:01]} Rxf3+ {[%clk
00:00:06]} {[%emt 00:00:01]} 0-1

[Event "UK Open Blitz Championships 2024 - London Qualifier"]
[Site "London, United Kingdom"]
[Date "2024.09.21"]
[Round "7.3"]
[White "Ghasi, Ameet K"]
[Black "Shafi, Declan"]
[Result "1-0"]
[TimeControl "3 minutes + 2 seconds incr. from move 1"]
[WhiteTitle "IM"]
[WhiteFideId "409200"]
[BlackFideId "2405156"]
[WhiteElo "2524"]
[BlackElo "2113"]

1. Nf3 {[%clk 00:02:58]} {[%emt 00:00:05]} Nf6 {[%clk 00:03:03]} {[%emt
00:00:01]} 2. g3 {[%clk 00:02:59]} {[%emt 00:00:01]} d5 {[%clk 00:03:04]}
{[%emt 00:00:01]} 3. Bg2 {[%clk 00:03:00]} e6 {[%clk 00:03:05]} {[%emt
00:00:02]} 4. O-O {[%clk 00:03:00]} {[%emt 00:00:02]} Be7 {[%clk 00:03:06]} 5.
d3 {[%clk 00:03:02]} O-O {[%clk 00:03:06]} {[%emt 00:00:02]} 6. Nbd2 {[%clk
00:03:03]} c5 {[%clk 00:02:55]} {[%emt 00:00:13]} 7. e4 {[%clk 00:03:00]}
{[%emt 00:00:03]} dxe4 {[%emt 00:00:09]} 8. dxe4 {[%clk 00:02:59]} Nc6 {[%clk
00:02:51]} {[%emt 00:00:03]} 9. Re1 {[%clk 00:02:53]} {[%emt 00:00:08]} Rb8
{[%clk 00:02:41]} {[%emt 00:00:13]} 10. e5 {[%clk 00:02:43]} {[%emt 00:00:11]}
Nd5 {[%clk 00:02:38]} {[%emt 00:00:06]} 11. c3 {[%clk 00:02:27]} {[%emt
00:00:18]} b5 {[%clk 00:02:21]} {[%emt 00:00:20]} 12. h4 {[%clk 00:02:28]} b4
{[%clk 00:02:16]} {[%emt 00:00:07]} 13. Qc2 {[%clk 00:02:18]} {[%emt 00:00:11]}
bxc3 {[%clk 00:01:49]} {[%emt 00:00:29]} 14. bxc3 {[%clk 00:02:19]} {[%emt
00:00:01]} Qa5 {[%clk 00:01:42]} {[%emt 00:00:10]} 15. Ne4 {[%clk 00:02:20]}
{[%emt 00:00:01]} Ba6 {[%clk 00:01:22]} {[%emt 00:00:22]} 16. Neg5 {[%clk
00:02:03]} {[%emt 00:00:18]} g6 {[%clk 00:01:16]} {[%emt 00:00:08]} 17. Bd2
{[%clk 00:02:00]} {[%emt 00:00:05]} Qa3 {[%clk 00:00:57]} {[%emt 00:00:21]} 18.
Rab1 {[%clk 00:02:00]} {[%emt 00:00:02]} Bc4 {[%clk 00:00:57]} {[%emt
00:00:02]} 19. Qe4 {[%clk 00:01:51]} {[%emt 00:00:11]} Rxb1 {[%clk 00:00:41]}
{[%emt 00:00:18]} 20. Rxb1 {[%clk 00:01:50]} {[%emt 00:00:02]} Qxa2 {[%clk
00:00:41]} {[%emt 00:00:02]} 21. h5 {[%clk 00:01:33]} {[%emt 00:00:19]} f5
{[%clk 00:00:29]} {[%emt 00:00:15]} 22. exf6 {[%clk 00:01:31]} {[%emt
00:00:04]} Nxf6 {[%clk 00:00:30]} {[%emt 00:00:01]} 23. Qe1 {[%clk 00:01:25]}
{[%emt 00:00:08]} h6 {[%clk 00:00:16]} {[%emt 00:00:16]} 24. Ra1 {[%clk
00:01:25]} Qc2 {[%clk 00:00:15]} {[%emt 00:00:03]} 25. Nxe6 {[%clk 00:01:21]}
{[%emt 00:00:06]} Re8 {[%clk 00:00:13]} {[%emt 00:00:04]} 26. Nc7 {[%clk
00:01:17]} {[%emt 00:00:05]} Rc8 {[%clk 00:00:13]} {[%emt 00:00:02]} 27. Ne5
{[%clk 00:00:55]} {[%emt 00:00:24]} Nxe5 {[%clk 00:00:09]} {[%emt 00:00:06]} 28.
Qxe5 {[%clk 00:00:56]} {[%emt 00:00:01]} Qf5 {[%clk 00:00:08]} {[%emt
00:00:03]} 29. Qxe7 {[%clk 00:00:51]} {[%emt 00:00:06]} Ng4 {[%emt 00:00:04]}
30. Bf4 {[%clk 00:00:33]} {[%emt 00:00:20]} g5 {[%clk 00:00:05]} {[%emt
00:00:05]} 31. Be4 {[%clk 00:00:32]} {[%emt 00:00:03]} Qf7 {[%clk 00:00:05]}
{[%emt 00:00:02]} 32. Qxf7+ {[%clk 00:00:33]} {[%emt 00:00:01]} Kxf7 {[%clk
00:00:06]} {[%emt 00:00:02]} 33. Bd6 {[%clk 00:00:33]} Nf6 {[%emt 00:00:02]} 34.
Bf5 {[%clk 00:00:34]} {[%emt 00:00:01]} Rd8 {[%clk 00:00:08]} 35. Bxc5 {[%clk
00:00:22]} {[%emt 00:00:13]} Nxh5 {[%clk 00:00:07]} {[%emt 00:00:03]} 36. Bd4
{[%clk 00:00:22]} {[%emt 00:00:02]} Nf6 {[%clk 00:00:07]} {[%emt 00:00:02]} 37.
Rxa7 {[%clk 00:00:23]} {[%emt 00:00:01]} Nd7 {[%clk 00:00:00]} {[%emt
00:00:07]} 1-0

[Event "UK Open Blitz Championships 2024 - London Qualifier"]
[Site "London, United Kingdom"]
[Date "2024.09.21"]
[Round "7.4"]
[White "Lucchi, Lorenzo"]
[Black "Gasanov, Eldar"]
[Result "0-1"]
[TimeControl "3 minutes + 2 seconds incr. from move 1"]
[BlackTitle "GM"]
[WhiteFideId "821160"]
[BlackFideId "14104466"]
[WhiteElo "2153"]
[BlackElo "2467"]

1. e4 {[%clk 00:03:04]} {[%emt 00:00:13]} c5 {[%clk 00:03:03]} 2. Nf3 {[%clk
00:03:05]} {[%emt 00:00:01]} Nc6 {[%clk 00:03:04]} 3. c3 {[%clk 00:03:06]} e5
{[%clk 00:03:03]} {[%emt 00:00:03]} 4. d4 {[%clk 00:03:07]} {[%emt 00:00:02]}
exd4 {[%clk 00:03:03]} {[%emt 00:00:02]} 5. cxd4 {[%clk 00:03:08]} {[%emt
00:00:01]} cxd4 {[%clk 00:03:04]} {[%emt 00:00:01]} 6. Nxd4 {[%clk 00:03:08]}
{[%emt 00:00:01]} Nf6 {[%clk 00:03:04]} {[%emt 00:00:01]} 7. Nxc6 {[%clk
00:03:02]} {[%emt 00:00:09]} dxc6 {[%clk 00:03:00]} {[%emt 00:00:06]} 8. Qxd8+
{[%clk 00:03:02]} {[%emt 00:00:03]} Kxd8 {[%clk 00:03:01]} 9. Bg5 {[%clk
00:03:01]} {[%emt 00:00:03]} Be7 {[%clk 00:02:51]} {[%emt 00:00:12]} 10. Nc3
{[%clk 00:03:01]} {[%emt 00:00:03]} Be6 {[%clk 00:02:50]} {[%emt 00:00:02]} 11.
O-O-O+ {[%clk 00:02:57]} {[%emt 00:00:07]} Kc7 {[%clk 00:02:45]} {[%emt
00:00:06]} 12. e5 {[%clk 00:02:31]} {[%emt 00:00:29]} Ng8 {[%clk 00:02:40]}
{[%emt 00:00:06]} 13. Be3 {[%clk 00:02:23]} {[%emt 00:00:10]} h5 {[%clk
00:02:24]} {[%emt 00:00:18]} 14. Be2 {[%clk 00:02:14]} {[%emt 00:00:11]} Nh6
{[%clk 00:02:15]} {[%emt 00:00:12]} 15. Bxh5 {[%clk 00:01:50]} {[%emt
00:00:26]} Nf5 {[%clk 00:02:14]} {[%emt 00:00:02]} 16. Bf3 {[%clk 00:01:44]}
{[%emt 00:00:07]} Nxe3 {[%clk 00:02:14]} {[%emt 00:00:03]} 17. fxe3 {[%clk
00:01:45]} {[%emt 00:00:02]} Bg5 {[%clk 00:01:45]} {[%emt 00:00:31]} 18. Kd2
{[%clk 00:01:46]} Rad8+ {[%clk 00:01:36]} {[%emt 00:00:11]} 19. Ke2 {[%clk
00:01:46]} {[%emt 00:00:01]} Rxd1 {[%clk 00:01:36]} {[%emt 00:00:02]} 20. Kxd1
{[%clk 00:01:36]} {[%emt 00:00:12]} Bxe3 {[%clk 00:01:32]} {[%emt 00:00:06]} 21.
h3 {[%clk 00:01:22]} {[%emt 00:00:16]} Rd8+ {[%clk 00:01:16]} {[%emt 00:00:17]}
22. Ke2 {[%clk 00:01:17]} {[%emt 00:00:07]} Bf4 {[%clk 00:01:14]} {[%emt
00:00:04]} 23. Bg4 {[%clk 00:01:02]} {[%emt 00:00:18]} Bc4+ {[%clk 00:01:07]}
{[%emt 00:00:09]} 24. Kf3 {[%clk 00:01:03]} {[%emt 00:00:01]} Bxe5 {[%clk
00:01:04]} {[%emt 00:00:05]} 25. Re1 {[%clk 00:01:03]} {[%emt 00:00:01]} Rd3+
{[%clk 00:00:55]} {[%emt 00:00:10]} 26. Ke4 {[%clk 00:00:56]} {[%emt 00:00:09]}
Bxc3 {[%clk 00:00:38]} {[%emt 00:00:20]} 27. bxc3 {[%clk 00:00:51]} {[%emt
00:00:07]} Rxc3 {[%clk 00:00:32]} {[%emt 00:00:08]} 28. Kd4 {[%clk 00:00:25]}
{[%emt 00:00:28]} Rc2 {[%clk 00:00:33]} 29. Re7+ {[%clk 00:00:26]} Kb6 {[%clk
00:00:21]} {[%emt 00:00:14]} 30. Bc8 {[%clk 00:00:26]} {[%emt 00:00:02]} Ba6
{[%clk 00:00:19]} {[%emt 00:00:03]} 31. g4 {[%clk 00:00:24]} {[%emt 00:00:04]}
Rd2+ {[%clk 00:00:17]} {[%emt 00:00:04]} 32. Kc3 {[%clk 00:00:24]} {[%emt
00:00:02]} Rd3+ {[%clk 00:00:18]} {[%emt 00:00:02]} 33. Kb2 {[%clk 00:00:21]}
{[%emt 00:00:04]} Rxh3 {[%clk 00:00:18]} {[%emt 00:00:02]} 34. Rxf7 {[%clk
00:00:22]} {[%emt 00:00:01]} Rh2+ {[%clk 00:00:19]} 35. Kb1 {[%clk 00:00:23]}
{[%emt 00:00:02]} g6 {[%clk 00:00:14]} {[%emt 00:00:08]} 36. Rg7 {[%clk
00:00:20]} {[%emt 00:00:05]} Bd3+ {[%clk 00:00:11]} {[%emt 00:00:03]} 37. Ka1
{[%clk 00:00:21]} {[%emt 00:00:02]} Kc5 {[%clk 00:00:09]} {[%emt 00:00:05]} 38.
Bxb7 {[%clk 00:00:18]} {[%emt 00:00:05]} Rg2 {[%clk 00:00:05]} {[%emt
00:00:04]} 39. Bc8 {[%clk 00:00:18]} {[%emt 00:00:03]} Bc4 {[%clk 00:00:06]}
{[%emt 00:00:02]} 40. a3 {[%clk 00:00:11]} {[%emt 00:00:09]} Bd3 {[%clk
00:00:06]} {[%emt 00:00:02]} 41. Rxa7 {[%clk 00:00:10]} {[%emt 00:00:03]} Kd4
{[%clk 00:00:07]} 42. Rd7+ {[%clk 00:00:11]} Kc3 {[%clk 00:00:08]} {[%emt
00:00:01]} 43. Rb7 {[%clk 00:00:12]} {[%emt 00:00:02]} Rg1+ {[%clk 00:00:09]}
{[%emt 00:00:01]} 44. Ka2 {[%clk 00:00:13]} Bc4+ {[%clk 00:00:11]} 0-1